bitfinex-derivatives/quotes_ETHF0:USTF0_20250220
["timestamp","ask_amount","ask_price","bid_price","bid_amount"]
[1740068385965,1.3095,2725.3,2725.2,0.73372]
[1740068386166,0.5758,2725.3,2724.9,1.1445]
[1740068386365,1.3095,2725.3,2725.2,0.27183365]
[1740068386570,0.5939,2725.4,2725.2,0.27183365]
[1740068386760,0.5939,2725.4,2724.9,2.979]
[1740068386964,0.5939,2725.4,2724.9,1.1445]
[1740068387160,0.607,2725.6,2725.3,0.27183365]
[1740068387464,0.73362,2725.6,2725.5,1.00547365]
[1740068387767,3.2078,2725.7,2725.5,0.27183365]
[1740068388065,3.2078,2725.7,2725.6,1.00545365]
[1740068388268,3.2078,2725.7,2725.6,1.58325365]
[1740068388568,3.94139,2725.7,2725.6,0.27183365]
[1740068393871,3.94139,2725.7,2725.6,1.00545365]
[1740068394068,3.2078,2725.7,2725.6,1.00545365]
[1740068394374,3.94139,2725.7,2725.6,0.27183365]
[1740068394577,0.607,2725.9,2725.6,0.27183365]
[1740068394868,0.02657005,2726.0,2725.8,0.27183365]
[1740068395079,0.02657005,2726.0,2725.9,1.00537365]
[1740068396881,0.02657005,2726.0,2725.9,0.27183365]
[1740068397070,0.76008005,2726.0,2725.9,0.27183365]
[1740068397267,0.76008005,2726.0,2725.9,1.00537365]
[1740068397575,0.76008005,2726.0,2725.6,3.7908]
[1740068397576,0.02657005,2726.0,2725.6,3.7908]
[1740068397775,1.32234,2725.9,2725.8,0.27183365]
[1740068398276,3.23437005,2726.0,2725.5,0.5663]
[1740068398476,0.5888,2725.8,2725.5,1.29993]
[1740068398667,1.32236,2725.8,2725.7,0.27183365]
[1740068398974,0.73356,2725.8,2725.7,1.00540365]
[1740068399177,0.73356,2725.8,2725.7,0.27183365]
[1740068399567,3.23437005,2726.0,2725.7,0.27183365]
[1740068399773,0.73356,2725.8,2725.7,1.00541365]
[1740068400074,0.73356,2725.8,2725.7,0.27183365]
[1740068400471,1.86037005,2726.0,2725.5,0.5663]
[1740068400679,0.73356,2725.8,2725.7,0.27183365]
[1740068400874,0.02657005,2726.0,2725.9,0.73354]
[1740068401170,0.02657005,2726.0,2725.9,1.00537365]
[1740068401375,0.76008005,2726.0,2725.9,0.27183365]
[1740068402170,0.02657005,2726.0,2725.9,1.00537365]
[1740068402479,0.76008005,2726.0,2725.9,0.27183365]
[1740068403071,0.76008005,2726.0,2725.9,1.00537365]
[1740068403271,0.76008005,2726.0,2725.9,0.27183365]
[1740068403769,0.76008005,2726.0,2725.9,1.00537365]
[1740068404582,0.02657005,2726.0,2725.9,1.00537365]
[1740068405379,3.94116,2726.6,2726.5,0.73337]
[1740068405571,3.7879,2726.9,2726.6,0.27183365]
[1740068406071,4.52117,2726.9,2726.8,0.27183365]
[1740068406277,4.52117,2726.9,2726.8,1.00512365]
[1740068406278,3.2078,2726.9,2726.8,1.00512365]
[1740068407080,0.003639,2727.1,2726.8,0.27183365]
[1740068407280,0.003639,2727.1,2727.0,1.00507365]
[1740068408278,0.5888,2728.1,2727.0,12.17463365]
[1740068408582,0.73304,2727.8,2727.7,0.27183365]
[1740068408770,0.73304,2727.8,2727.6,0.27183365]
[1740068408975,3.2078,2727.9,2727.7,0.27183365]
[1740068409177,0.5888,2728.1,2727.8,0.27183365]
[1740068409673,0.5888,2728.1,2727.5,0.5542]
[1740068409871,0.73306,2727.7,2727.5,0.5542]
[1740068410073,0.73304,2727.8,2727.7,0.27183365]
[1740068410279,6.5004,2728.0,2726.7,3.7604]
[1740068410576,0.73316,2727.3,2727.2,0.27183365]
[1740068410778,2.695,2727.6,2727.2,0.27183365]
[1740068410982,0.5485,2727.5,2727.2,0.27183365]
[1740068411177,1.28162,2727.5,2727.2,0.27183365]
[1740068411778,0.5485,2727.5,2727.4,0.27183365]
[1740068411986,3.2926,2728.0,2727.6,0.73308]
[1740068412183,3.2078,2728.0,2727.9,0.27183365]
[1740068412384,0.73297,2728.1,2727.9,0.27183365]
[1740068412678,0.73294,2728.1,2728.0,0.27183365]
[1740068412879,3.2435,2728.2,2728.0,0.27183365]
[1740068413074,3.2078,2728.7,2728.1,0.27183365]
[1740068413275,0.73284,2728.5,2728.3,0.27183365]
[1740068413781,0.73286,2728.5,2728.3,0.27183365]
[1740068413984,0.73286,2728.4,2728.3,0.27183365]
[1740068414181,0.73286,2728.4,2728.3,0.2703505]
[1740068414480,0.5574,2728.6,2728.1,0.00549984]
[1740068414684,0.73292,2728.2,2728.1,0.00549984]
[1740068414880,3.2078,2728.4,2728.1,0.27585034]
[1740068415087,3.94066,2728.4,2728.3,0.2703505]
[1740068415580,3.2078,2728.4,2728.3,0.2703505]
[1740068415783,3.2078,2728.4,2728.3,1.0032405]
[1740068416086,3.2078,2728.4,2728.3,0.2703505]
[1740068416278,3.2078,2728.4,2728.1,0.00549984]
[1740068416483,0.73292,2728.2,2728.1,0.00549984]
[1740068416685,5.9018,2728.4,2728.2,0.2703505]
[1740068416887,0.73289,2728.3,2728.2,0.2703505]
[1740068417181,3.94066,2728.4,2728.3,0.2703505]
[1740068417384,0.73292,2728.2,2728.1,0.27585034]
[1740068417979,0.73292,2728.2,2728.1,0.00549984]
[1740068418184,3.2078,2728.4,2728.1,0.00549984]
[1740068418385,0.73292,2728.2,2728.1,0.00549984]
[1740068419083,3.42592,2728.2,2728.1,0.00549984]
[1740068419583,9.42592,2728.2,2728.1,9.84e-06]
[1740068421086,3.42592,2728.2,2728.1,9.84e-06]
[1740068423488,0.73316,2727.3,2727.2,3.7989]
[1740068423882,0.73316,2727.3,2727.2,4.0692505]
[1740068424084,0.73316,2727.3,2727.2,3.4781505]
[1740068424483,0.73316,2727.3,2727.2,0.2703505]
[1740068424988,0.73321,2727.1,2727.0,0.00549984]
[1740068426197,0.73321,2727.1,2727.0,0.27585034]
[1740068427883,3.2078,2727.2,2727.0,0.27585034]
[1740068428088,3.2078,2727.2,2727.1,1.5531605]
[1740068428289,3.2078,2727.2,2727.1,2.1445605]
[1740068428491,3.7836,2727.5,2727.1,1.4113505]
[1740068428691,4.51672,2727.5,2727.4,0.2703505]
[1740068429892,4.51671,2727.5,2727.4,0.2703505]
[1740068430200,3.94091,2727.5,2727.4,0.2703505]
[1740068431094,0.73321,2727.1,2727.0,0.00549984]
[1740068431695,0.73321,2727.1,2727.0,0.27585034]
[1740068432090,0.7332,2727.2,2727.0,0.27585034]
[1740068432290,0.5821,2727.4,2727.2,0.2703505]
[1740068432490,3.2078,2727.8,2727.3,0.2703505]
[1740068432694,3.2078,2727.8,2727.7,1.0034005]
[1740068432993,3.94083,2727.8,2727.7,41.0703505]
[1740068433203,0.73316,2727.3,2727.2,0.6071]
[1740068433695,5.10674,2727.7,2727.2,0.8774505]
[1740068433990,0.73316,2727.3,2727.2,0.6071]
[1740068434390,5.10674,2727.7,2727.2,0.8774505]
[1740068434595,0.73308,2727.6,2727.5,0.2703505]
[1740068434994,0.73316,2727.3,2727.2,0.6071]
[1740068435390,0.73316,2727.3,2727.2,0.8774505]
[1740068435586,3.7976,2727.5,2727.0,0.00549984]
[1740068435587,0.73321,2727.1,2727.0,0.00549984]
[1740068435784,3.94101,2727.1,2727.0,0.00549984]
[1740068435991,0.73343,2726.3,2726.2,1.7219]
[1740068436198,0.73343,2726.3,2726.2,42.5219]
[1740068436393,0.73343,2726.3,2726.2,0.8420505]
[1740068436798,3.7976,2726.7,2726.2,0.8420505]
[1740068436998,4.53092,2726.7,2726.6,0.2703505]
[1740068437192,4.53092,2726.7,2726.2,0.5717]
[1740068437193,3.80309984,2726.7,2726.2,0.57719984]
[1740068437401,0.73343,2726.3,2726.2,0.00549984]
[1740068437800,0.73343,2726.3,2726.2,0.27585034]
[1740068438698,3.94123,2726.3,2726.2,0.27585034]
[1740068438895,3.2078,2726.3,2726.2,0.27585034]
[1740068439098,3.94123,2726.3,2726.2,0.27585034]
[1740068439397,2.692,2726.6,2726.3,0.73343]
[1740068439596,2.692,2726.6,2726.5,0.73337]
[1740068439794,3.21329984,2726.7,2726.5,0.2703505]
[1740068440103,3.21329984,2726.7,2726.4,1.1723]
[1740068440104,0.00549984,2726.7,2726.6,41.0703505]
[1740068440301,0.00549984,2726.7,2726.6,41.8037005]
[1740068440597,3.2078,2727.0,2726.6,41.0703505]
[1740068440906,3.94104,2727.0,2726.9,0.2703505]
[1740068441397,3.2078,2727.0,2726.6,40.8]
[1740068441996,0.73337,2726.6,2726.4,1.1723]
[1740068442210,0.73332,2726.7,2726.6,0.2703505]
[1740068442702,0.73335,2726.6,2726.4,1.1723]
[1740068443004,0.73334,2726.7,2726.6,0.2703505]
[1740068443600,0.73337,2726.5,2726.4,1.1723]
[1740068444102,0.73337,2726.5,2726.4,1.4426505]
[1740068444304,3.2078,2726.7,2726.4,1.4426505]
[1740068444504,3.2078,2726.7,2726.6,0.2703505]
[1740068444704,3.94112,2726.7,2726.6,0.2703505]
[1740068444905,3.2078,2726.7,2726.6,0.2703505]
[1740068445106,3.94112,2726.7,2726.6,0.2703505]
[1740068445505,3.2078,2726.7,2726.6,0.2703505]
[1740068445808,3.94112,2726.7,2726.6,0.2703505]
[1740068446008,3.94112,2726.7,2726.6,41.0703505]
[1740068446206,3.94112,2726.7,2726.6,0.2703505]
[1740068446600,3.2078,2726.7,2726.6,0.2703505]
[1740068446904,3.94112,2726.7,2726.6,0.2703505]
[1740068451909,3.94112,2726.7,2726.2,0.00549984]
[1740068451910,3.2078,2726.7,2726.2,0.00549984]
[1740068452105,0.73343,2726.3,2726.2,0.27585034]
[1740068452306,0.73343,2726.3,2726.2,0.00549984]
[1740068452806,0.73343,2726.3,2725.6,3.94141]
[1740068452807,0.73358,2725.8,2725.6,3.94141]
[1740068453005,0.73354,2725.9,2725.8,0.2703505]
[1740068453402,0.73359,2725.8,2725.6,3.94141]
[1740068453609,1.30414,2725.9,2725.8,0.2703505]
[1740068454108,2.692,2726.1,2725.8,0.2703505]
[1740068454309,0.5706,2726.3,2726.0,0.2703505]
[1740068454811,0.73356,2725.8,2725.6,3.94690984]
[1740068455001,0.73351,2726.0,2725.9,0.2703505]
[1740068456104,0.5706,2726.3,2725.9,0.2703505]
[1740068456303,0.73348,2726.2,2726.0,0.7335]
[1740068456502,0.5706,2726.3,2726.0,0.8302505]
[1740068456709,0.73348,2726.1,2726.0,0.5599]
[1740068457299,0.73346,2726.2,2726.0,1.5637405]
[1740068457507,0.73346,2726.2,2726.1,0.2703505]
[1740068457911,0.5706,2726.3,2725.7,1.29349]
[1740068458212,0.73355,2725.9,2725.8,0.2703505]
[1740068458602,0.73354,2725.9,2725.8,0.2703505]
[1740068459210,0.73359,2725.7,2725.6,0.00549984]
[1740068460308,1.30839,2725.7,2725.6,0.00549984]
[1740068460612,0.5748,2725.7,2725.6,0.73911984]
[1740068460806,0.5748,2725.7,2725.6,1.00947034]
[1740068461208,0.6056,2726.0,2725.6,0.27585034]
[1740068461415,3.2801,2726.2,2725.9,0.2703505]
[1740068461713,3.2801,2726.2,2725.7,2.43288]
[1740068461714,2.692,2726.2,2726.1,1.0038305]
[1740068462103,3.2078,2726.4,2726.1,0.2703505]
[1740068462307,3.2078,2726.4,2726.3,1.0037805]
[1740068462503,3.2078,2726.7,2726.3,0.2703505]
[1740068462703,0.5881,2726.8,2726.6,0.2703505]
[1740068462908,3.8134,2727.0,2726.6,0.2703505]
[1740068463109,0.73329,2726.9,2726.8,0.2703505]
[1740068463610,0.73327,2726.9,2726.8,0.2703505]
[1740068464408,3.8134,2727.0,2726.8,0.2703505]
[1740068464612,3.8134,2727.0,2726.7,1.2]
[1740068464613,3.8134,2727.0,2726.9,0.2703505]
[1740068464808,0.00546583,2727.2,2726.9,0.2703505]
[1740068465007,0.00546583,2727.2,2727.1,0.2703505]
[1740068465214,0.73865583,2727.2,2727.1,0.2703505]
[1740068466712,0.00546583,2727.2,2727.1,0.2703505]
[1740068467705,0.73865583,2727.2,2727.1,0.2703505]
[1740068468007,0.00546583,2727.2,2727.1,0.2703505]
[1740068468715,0.73865583,2727.2,2727.1,0.2703505]
[1740068469219,0.00546583,2727.2,2727.1,1.0035605]
[1740068469719,0.00546583,2727.2,2727.1,0.2703505]
[1740068470420,0.73865583,2727.2,2727.1,0.2703505]
[1740068471608,0.00546583,2727.2,2727.1,1.0035605]
[1740068471810,0.00546583,2727.2,2727.1,0.2703505]
[1740068472007,0.73865583,2727.2,2727.1,0.2703505]
[1740068472521,0.00546583,2727.2,2727.1,1.0035605]
[1740068474020,0.73865583,2727.2,2727.1,0.2703505]
[1740068474521,0.73336,2726.6,2726.4,0.73339]
[1740068474725,0.73329,2726.8,2726.7,0.2703505]
[1740068475025,3.2078,2726.9,2726.1,3.55639]
[1740068475026,0.73344,2726.3,2726.1,2.45617]
[1740068475420,3.2078,2726.4,2726.2,0.2703505]
[1740068475615,1.28633,2726.3,2726.2,0.2703505]
[1740068475821,1.28633,2726.3,2726.1,0.73348]
[1740068476018,1.28633,2726.3,2726.2,0.2703505]
[1740068476420,0.73347,2726.2,2725.9,0.73353]
[1740068476622,0.5529,2726.3,2725.8,41.9416]
[1740068476623,1.28633,2726.3,2726.2,0.2703505]
[1740068477020,1.28635,2726.3,2726.0,0.73351]
[1740068477226,0.5529,2726.3,2726.2,0.2703505]
[1740068477433,2.69,2726.5,2726.2,0.2703505]
[1740068477727,2.69,2726.5,2726.4,0.2703505]
[1740068477926,3.42337,2726.5,2726.4,0.2703505]
[1740068478120,0.73341,2726.4,2726.1,0.73346]
[1740068478321,3.42337,2726.5,2726.4,0.2703505]
[1740068478629,0.73343,2726.3,2726.2,0.2703505]
[1740068479023,0.73346,2726.2,2725.9,3.94132]
[1740068479215,2.69,2726.5,2726.2,0.2703505]
[1740068479417,2.69,2726.5,2726.4,1.0037505]
[1740068479813,3.7978,2726.7,2726.4,0.2703505]
[1740068480020,3.7978,2726.7,2726.6,1.0037005]
[1740068480218,4.53112,2726.7,2726.6,0.2703505]
[1740068481137,0.7334,2726.4,2725.9,3.2078]
[1740068481322,0.7334,2726.4,2726.3,0.2703505]
[1740068481525,3.7978,2726.7,2725.9,3.2078]
[1740068481526,0.73345,2726.3,2726.0,0.7335]
[1740068481723,0.73342,2726.4,2726.3,0.2703505]
[1740068482118,3.2078,2726.4,2725.9,3.2078]
[1740068482318,0.73343,2726.3,2726.2,0.2703505]
[1740068482824,3.2078,2726.4,2725.9,3.2078]
[1740068483024,0.73346,2726.2,2726.1,0.2703505]
[1740068483223,0.5492,2726.3,2726.1,1.0038105]
[1740068483725,0.5492,2726.3,2726.2,0.2703505]
[1740068484027,0.5492,2726.3,2726.2,1.0038105]
[1740068484729,1.28263,2726.3,2726.2,0.2703505]
[1740068485222,0.5492,2726.3,2726.2,0.2703505]
[1740068485414,0.5492,2726.3,2726.2,1.0038105]
[1740068485615,3.2078,2726.4,2726.2,0.2703505]
[1740068485818,3.2078,2726.4,2726.3,1.0037805]
[1740068486425,3.7978,2726.7,2726.3,0.2703505]
[1740068486726,0.73336,2726.6,2726.1,1.8337]
[1740068486922,3.7978,2726.7,2726.6,1.0037005]
[1740068487126,3.7571,2727.1,2726.6,0.2703505]
[1740068487327,7.73181,2727.1,2727.0,0.2703505]
[1740068487522,7.73181,2727.1,2726.7,1.33191]
[1740068487523,6.9986,2727.1,2726.9,0.2703505]
[1740068487721,0.73324,2727.0,2726.9,0.2703505]
[1740068488531,6.9986,2727.1,2726.7,0.5986]
[1740068488831,0.73327,2726.9,2726.8,0.2703505]
[1740068489330,0.73326,2727.0,2726.8,0.73329]
[1740068489532,0.73326,2727.0,2726.9,0.2703505]
[1740068490024,6.9986,2727.1,2726.7,0.5986]
[1740068490233,0.73324,2727.0,2726.9,0.2703505]
[1740068490531,6.9986,2727.1,2726.8,0.2703505]
[1740068490830,0.73327,2726.9,2726.8,0.2703505]
[1740068491027,0.73331,2726.8,2726.6,0.73334]
[1740068491227,6.9986,2727.1,2726.8,0.2703505]
[1740068491434,0.73327,2726.9,2726.8,0.2703505]
[1740068492237,6.9986,2727.1,2726.8,0.2703505]
[1740068492538,0.73327,2726.9,2726.8,0.2703505]
[1740068494537,0.73326,2727.0,2726.8,1.0036305]
[1740068494839,0.73327,2726.9,2726.8,1.0036305]
[1740068495336,0.73327,2726.9,2726.8,0.2703505]
[1740068495632,4.9058,2727.1,2726.8,0.2703505]
[1740068495827,0.73327,2726.9,2726.8,1.0036405]
[1740068496130,4.9058,2727.1,2726.8,0.2703505]
[1740068496336,0.73327,2726.9,2726.8,0.2703505]
[1740068496526,0.73327,2726.9,2726.8,1.0036405]
[1740068496734,0.73327,2726.9,2726.8,0.2703505]
[1740068498233,4.9058,2727.1,2726.8,1.0036405]
[1740068498427,4.3096,2727.1,2726.9,0.2703505]
[1740068498834,0.73326,2727.0,2726.9,0.73326]
[1740068499031,0.73326,2727.0,2726.6,1.83336]
[1740068499233,0.73326,2727.0,2726.9,0.2703505]
[1740068500233,4.3096,2727.1,2726.9,0.2703505]
[1740068500430,4.3096,2727.1,2726.7,1.83331]
[1740068500635,4.3096,2727.1,2727.0,1.0035905]
[1740068500836,5.04281,2727.1,2727.0,1.0035905]
[1740068501031,3.2078,2727.1,2727.0,1.0035905]
[1740068501336,0.73321,2727.1,2727.0,1.0035705]
[1740068501932,0.73321,2727.1,2727.0,0.2703505]
[1740068502632,0.00546583,2727.2,2727.0,0.2703505]
[1740068502832,0.73865583,2727.2,2727.1,0.2703505]
[1740068504039,0.00546583,2727.2,2726.8,1.89367]
[1740068504342,4.52391,2727.1,2727.0,0.2703505]
[1740068504535,4.52391,2727.1,2726.8,1.1604]
[1740068504734,0.73327,2726.9,2726.8,0.2703505]
[1740068505233,4.52016,2727.0,2726.3,1.1569]
[1740068505438,1.29799,2726.8,2726.7,0.2703505]
[1740068506332,0.73329,2726.8,2726.7,0.2703505]
[1740068507333,3.7907,2727.1,2726.9,0.73327]
[1740068507548,4.52391,2727.1,2727.0,0.2703505]
[1740068507840,1.31611,2727.1,2727.0,0.2703505]
[1740068508640,4.52391,2727.1,2727.0,0.2703505]
[1740068510042,3.7907,2727.1,2727.0,0.2703505]
[1740068510238,4.52391,2727.1,2727.0,1.0035905]
[1740068510441,3.7907,2727.1,2727.0,0.2703505]
[1740068510636,4.52391,2727.1,2727.0,0.2703505]
[1740068510838,3.7907,2727.1,2727.0,0.2703505]
[1740068511038,4.52391,2727.1,2727.0,0.2703505]
[1740068513346,3.7907,2727.1,2727.0,1.0035905]
[1740068513645,0.5829,2727.1,2727.0,1.0035905]
[1740068514045,1.31611,2727.1,2727.0,1.0035905]
[1740068514247,0.5829,2727.1,2727.0,1.0035905]
[1740068514549,0.00546583,2727.2,2727.0,0.2703505]
[1740068514842,0.00546583,2727.2,2727.1,1.0035605]
[1740068515454,0.73865583,2727.2,2727.1,1.0035605]
[1740068515654,0.00546583,2727.2,2727.1,0.2703505]
[1740068515953,0.73865583,2727.2,2727.1,1.0035605]
[1740068516143,0.00546583,2727.2,2727.1,1.0035605]
[1740068516546,0.73865583,2727.2,2727.1,0.2703505]
[1740068517750,2.69146583,2727.2,2726.3,3.2078]
[1740068517950,0.73333,2726.7,2726.6,0.73333]
[1740068518149,0.73333,2726.7,2726.3,4.8885]
[1740068518451,0.7334,2726.4,2726.3,4.6061505]
[1740068518951,0.7334,2726.4,2726.3,3.4781505]
[1740068519145,0.73339,2726.5,2726.3,4.2115705]
[1740068519452,2.686,2726.7,2726.3,3.4781505]
[1740068519759,0.7334,2726.5,2726.3,1.0037705]
[1740068520157,3.2078,2726.5,2726.3,0.2703505]
[1740068520358,3.2078,2726.5,2726.4,0.7334]
[1740068520753,0.73336,2726.6,2726.4,1.0037505]
[1740068520948,0.73336,2726.6,2726.5,0.2703505]
[1740068521151,2.686,2726.7,2726.5,1.0037005]
[1740068523654,3.2078,2726.8,2726.7,1.0036705]
[1740068523958,3.94109,2726.8,2726.7,0.2703505]
[1740068524464,3.2078,2726.8,2726.7,1.0036705]
[1740068526360,3.94102,2727.1,2727.0,0.73324]
[1740068526553,3.94101,2727.1,2727.0,0.2703505]
[1740068526857,0.73324,2727.0,2726.9,0.73324]
[1740068527456,0.73324,2727.0,2726.9,1.0035905]
[1740068527845,0.73324,2727.0,2726.9,0.2703505]
[1740068529063,0.73329,2726.8,2726.7,0.73331]
[1740068529247,3.2078,2727.1,2726.8,0.2703505]
[1740068529453,0.73328,2726.9,2726.8,0.2703505]
[1740068529655,2.685,2727.0,2726.5,0.5735]
[1740068529859,0.73343,2726.4,2726.2,1.33185]
[1740068530157,0.73343,2726.4,2726.3,0.2703505]
[1740068530360,3.2078,2726.5,2726.1,0.2703505]
[1740068530361,0.73346,2726.2,2726.1,0.2703505]
[1740068530657,0.6075,2726.3,2726.2,0.2703505]
[1740068530854,0.6075,2726.3,2726.2,1.0038105]
[1740068531056,0.73347,2726.2,2725.9,2.48822]
[1740068531265,0.73347,2726.2,2726.1,0.2703505]
[1740068532057,3.94126,2726.2,2726.1,0.2703505]
[1740068532255,3.2078,2726.2,2725.7,40.8]
[1740068532456,0.5613,2726.1,2726.0,0.2703505]
[1740068532862,0.5613,2726.1,2726.0,1.0038605]
[1740068533061,3.2078,2726.2,2726.0,0.2703505]
[1740068533249,3.2078,2726.2,2726.1,0.2703505]
[1740068533450,3.94126,2726.2,2725.6,1.17539984]
[1740068533756,3.2078,2726.2,2726.1,0.2703505]
[1740068533956,3.94127,2726.2,2725.9,0.73353]
[1740068534158,3.94126,2726.2,2726.1,0.2703505]
[1740068534556,3.2078,2726.2,2725.6,1.17539984]
[1740068534752,3.94127,2726.2,2726.1,0.2703505]
[1740068535260,3.94127,2726.2,2725.6,1.17539984]
[1740068535261,3.2078,2726.2,2725.6,1.17539984]
[1740068535458,0.73349,2726.1,2726.0,0.2703505]
[1740068535661,3.94126,2726.2,2726.0,0.2703505]
[1740068535858,0.73348,2726.1,2726.0,0.2703505]
[1740068537560,3.2078,2726.2,2726.0,0.2703505]
[1740068537961,3.94126,2726.2,2726.1,0.2703505]
[1740068538356,3.2078,2726.2,2725.6,1.17539984]
[1740068538565,0.73359,2725.7,2725.6,0.00549984]
[1740068539555,1.31429,2725.7,2725.6,0.00549984]
[1740068540167,0.73371,2725.3,2725.1,0.73374]
[1740068540362,0.73372,2725.3,2725.1,0.2703505]
[1740068540567,3.2078,2725.4,2725.3,0.7337]
[1740068540871,3.2078,2725.4,2725.2,0.2703505]
[1740068541259,0.7337,2725.3,2725.2,0.2703505]
[1740068541961,3.8078,2725.4,2725.2,0.2703505]
[1740068542170,4.54148,2725.4,2725.2,0.2703505]
[1740068542365,3.8078,2725.4,2725.3,0.7337]
[1740068542764,3.8078,2725.4,2725.1,0.73373]
[1740068542960,3.8078,2725.4,2725.2,0.2703505]
[1740068543165,3.8078,2725.4,2725.3,0.7337]
[1740068543664,3.8078,2725.4,2725.0,41.39059984]
[1740068543867,3.8078,2725.4,2725.3,0.7337]
[1740068544173,0.00549984,2725.6,2725.3,0.2703505]
[1740068544370,0.00549984,2725.6,2725.5,1.0039905]
[1740068544759,0.00549984,2725.6,2725.5,1.6112905]
[1740068545866,0.73366,2725.5,2725.3,0.73368]
[1740068546072,0.73364,2725.5,2725.4,0.2703505]
[1740068546270,1.29574,2725.5,2725.4,0.2703505]
[1740068546472,0.7337,2725.3,2725.2,0.73371]
[1740068546775,3.94149,2725.4,2725.3,0.2703505]
[1740068546967,3.2078,2725.4,2725.2,0.73372]
[1740068547271,0.73371,2725.3,2725.2,0.2703505]
[1740068547571,3.94149,2725.4,2725.2,0.2703505]
[1740068547767,3.2078,2725.4,2725.3,0.7337]
[1740068548166,3.94147,2725.4,2725.3,0.7337]
[1740068548362,0.5621,2725.5,2725.3,1.0040505]
[1740068548576,1.29574,2725.5,2725.4,0.2703505]
[1740068548772,0.5621,2725.5,2725.4,1.0040205]
[1740068548969,0.73911984,2725.6,2725.4,0.2703505]
[1740068549172,0.73364,2725.5,2725.4,0.2703505]
[1740068549369,0.73911984,2725.6,2725.4,1.0040005]
[1740068549677,0.73364,2725.5,2725.4,0.2703505]
[1740068550577,0.00549984,2725.6,2725.4,0.2703505]
[1740068550771,2.95449984,2725.6,2725.4,0.2703505]
[1740068551076,0.73364,2725.5,2725.4,0.2703505]
[1740068552279,2.95449984,2725.6,2725.4,0.2703505]
[1740068552674,2.95449984,2725.6,2725.5,1.0039905]
[1740068553378,2.95449984,2725.6,2725.5,0.2703505]
[1740068553573,0.73368,2725.4,2725.1,1.8173]
[1740068553767,0.73368,2725.4,2725.3,0.2703505]
[1740068553972,0.73368,2725.4,2725.3,1.0040505]
[1740068554274,0.73368,2725.4,2725.3,0.7337]
[1740068554476,0.73368,2725.4,2725.1,1.8173]
[1740068554666,0.73368,2725.4,2725.3,1.0040505]
[1740068555072,1.34356,2725.5,2725.4,0.73367]
[1740068555675,0.6099,2725.5,2725.3,0.73368]
[1740068555875,0.73367,2725.4,2725.3,1.0040305]
[1740068556076,1.34356,2725.5,2725.3,0.7337]
[1740068556871,0.73367,2725.4,2725.3,0.7337]
[1740068557074,1.34355,2725.5,2725.3,0.7337]
[1740068557567,1.34355,2725.5,2725.4,0.73367]
[1740068557773,0.73367,2725.4,2725.3,0.2703505]
[1740068558175,0.73367,2725.4,2725.3,1.0040505]
[1740068558377,0.6099,2725.5,2725.1,1.8173]
[1740068558378,0.73372,2725.3,2725.1,2.55103]
[1740068558679,1.31871,2725.3,2725.1,2.55104]
[1740068558871,1.31871,2725.3,2725.2,0.2703505]
[1740068559268,0.73374,2725.2,2725.0,0.73925984]
[1740068559677,0.73374,2725.2,2725.1,0.2703505]
[1740068560878,3.7928,2725.3,2725.0,0.73926984]
[1740068561183,0.73375,2725.1,2725.0,0.27585034]
[1740068561678,0.73375,2725.1,2725.0,0.00549984]
[1740068563182,3.41675,2725.1,2725.0,0.00549984]
[1740068563580,3.41675,2725.1,2724.4,0.5518]
[1740068563581,0.73391,2724.5,2724.4,0.5518]
[1740068564081,0.73391,2724.5,2724.4,0.8221505]
[1740068564478,6.7307,2724.8,2724.4,0.8221505]
[1740068564683,0.73389,2724.6,2724.5,0.2703505]
[1740068565675,6.7307,2724.8,2724.5,0.2703505]
[1740068565988,6.1568,2724.8,2724.7,1.0042105]
[1740068566879,2.949,2724.8,2724.7,1.0042105]
[1740068567488,3.68283,2724.8,2724.7,1.0042105]
[1740068567785,2.949,2724.8,2724.7,1.0042105]
[1740068567981,3.68283,2724.8,2724.7,1.0042105]
[1740068568486,3.68283,2724.8,2724.7,0.2703505]
[1740068568687,0.73383,2724.8,2724.7,0.2703505]
[1740068569291,0.73391,2724.5,2724.4,0.5518]
[1740068569589,0.73391,2724.5,2724.4,1.28574]
[1740068569783,0.73391,2724.5,2724.4,1.5560905]
[1740068570090,0.73391,2724.5,2724.4,0.8221505]
[1740068571089,0.73391,2724.5,2724.4,1.5560905]
[1740068571395,0.5523,2724.6,2724.4,0.8221505]
[1740068571579,1.28621,2724.6,2724.5,0.2703505]
[1740068571786,0.73391,2724.6,2724.5,1.0042605]
[1740068571986,0.73391,2724.6,2724.5,0.73391]
[1740068572392,0.73391,2724.5,2724.4,1.28574]
[1740068572592,0.73391,2724.5,2724.4,0.5518]
[1740068572793,0.73391,2724.5,2724.4,1.5560905]
[1740068573092,0.73391,2724.5,2724.4,0.8221505]
[1740068573792,0.73391,2724.5,2724.4,1.5560905]
[1740068573993,0.73391,2724.6,2724.5,0.7339]
[1740068574188,0.73391,2724.6,2724.5,0.2703505]
[1740068574496,0.73391,2724.5,2724.4,1.28573]
[1740068574892,0.73388,2724.7,2724.6,0.73388]
[1740068575094,0.73388,2724.7,2724.6,0.73386]
[1740068575095,0.73387,2724.7,2724.6,0.73386]
[1740068575993,2.949,2724.8,2724.6,0.2703505]
[1740068576192,2.949,2724.8,2724.4,0.5518]
[1740068576193,2.949,2724.8,2724.7,1.0042105]
[1740068576798,2.949,2724.8,2724.7,41.8042105]
[1740068577193,3.68283,2724.8,2724.7,41.8042105]
[1740068577394,2.949,2724.8,2724.7,41.8042105]
[1740068577598,2.949,2724.8,2724.7,41.0703505]
[1740068577897,2.949,2724.8,2724.7,41.8042105]
[1740068578391,3.68283,2724.8,2724.7,41.8042105]
[1740068578797,2.949,2724.8,2724.7,41.8042105]
[1740068580595,3.9416,2725.0,2724.9,0.73381]
[1740068580797,0.73383,2724.9,2724.8,1.88872]
[1740068581497,0.73377,2725.1,2724.8,1.4252505]
[1740068581697,1.34645,2725.2,2725.1,0.73375]
[1740068581891,3.2078,2725.3,2725.1,0.2703505]
[1740068582096,0.73372,2725.2,2725.1,1.0040905]
[1740068582301,0.73372,2725.2,2725.1,0.2703505]
[1740068582503,0.73378,2725.0,2724.9,0.6021]